[Event "SWE-ch Masters 2019"]
[Site "Eskilstuna"]
[Date "2019.07.09"]
[Round "4.9"]
[White "Bannoura, Jeries"]
[Black "Sivhed, Johan"]
[Result "0-1"]
[ECO "A00"]
[WhiteElo "1976"]
[BlackElo "2023"]
[Annotator "NA"]
[PlyCount "73"]
[EventDate "2019.07.06"]
[EventType "swiss"]
[EventCountry "SWE"]
[SourceTitle "playchess.com"]
[Source "ChessBase"]
[SourceQuality "1"]
[TimeControl "40/5400+30:1800+30"]

1. d3 {[%emt 0:00:00]} e5 {[%emt 0:00:00]} 2. g3 {[%emt 0:00:00]} d5 {[%emt 0:00:00]} 3. Bg2 {[%emt 0:00:01]} Nf6 {[%emt 0:00:18]} 4. Nc3 {[%emt 0:02:25]} d4 {[%emt 0:08:19]} 5. Nb1 {[%emt 0:00:10]} Nc6 {[%emt 0:02:11]} 6. c3 {[%emt 0:00:28]} a5 {[%emt 0:02:02]} 7. Nf3 {[%emt 0:04:29]} Bc5 {[%emt 0:02:59]} 8. O-O {[%emt 0:01:10]} O-O {[%emt 0:01:45]} 9. a4 {[%emt 0:03:11]} Re8 {[%emt 0:07:12]} 10. Na3 {[%emt 0:06:20]} h6 {[%emt 0:03:01]} 11. Nb5 {[%emt 0:02:25]} Bf5 {[%emt 0:02:12]} 12. cxd4 {[%emt 0:02:14]} exd4 {[%emt 0:00:55]} 13. Bf4 {[%emt 0:00:15]} Nd5 {[%emt 0:02:55]} 14. Rc1 {[%emt 0:02:25]} Bb6 {[%emt 0:03:36]} 15. Bd2 {[%emt 0:06:18]} Qd7 {[%emt 0:01:18]} 16. Rc4 {[%emt 0:05:38]} Nf6 {[%emt 0:01:07]} 17. Re1 {[%emt 0:03:43]} Be6 {[%emt 0:12:30]} 18. Rc1 {[%emt 0:00:22]} Bd5 {[%emt 0:01:03]} 19. e3 {[%emt 0:06:26]} dxe3 {[%emt 0:02:09]} 20. Bxe3 {[%emt 0:00:10]} Rad8 {[%emt 0:09:25]} 21. d4 {[%emt 0:11:12]} Re7 {[%emt 0:09:50]} 22. Ne5 {[%emt 0:10:22]} Nxe5 {[%emt 0:02:54]} 23. Bxd5 {[%emt 0:07:02]} Nxd5 {[%emt 0:00:57]} 24. dxe5 {[%emt 0:00:08]} Nxe3 {[%emt 0:01:04]} 25. Qxd7 {[%emt 0:00:36]} Rdxd7 {[%emt 0:00:20]} 26. fxe3 {[%emt 0:00:15]} Rxe5 {[%emt 0:00:15]} 27. Rc2 {[%emt 0:02:03]} Rxe3 {[%emt 0:01:26]} 28. Rxe3 {[%emt 0:00:10]} Bxe3+ {[%emt 0:00:05]} 29. Kg2 {[%emt 0:00:01]} c6 {[%emt 0:02:08]} 30. Na3 {[%emt 0:00:16]} Rd2+ {[%emt 0:00:38]} 31. Rxd2 {[%emt 0:00:06]} Bxd2 {[%emt 0:00:24]} 32. Nc4 {[%emt 0:00:39]} Bb4 {[%emt 0:00:15]} 33. Kf3 {[%emt 0:00:45]} b5 {[%emt 0:02:21]} 34. Nb6 {[%emt 0:00:06]} Bc5 {[%emt 0:02:47]} 35. Nd7 {[%emt 0:01:00]} Bg1 {[%emt 0:00:19]} 36. h3 {[%emt 0:00:22]} bxa4 {[%emt 0:00:27]} 37. Nc5 {[%emt 0:00:23]} 0-1

[Event "SWE-ch Masters 2019"]
[Site "Eskilstuna"]
[Date "2019.07.09"]
[Round "4.10"]
[White "Gromark, Per-Olof"]
[Black "Carlsson, Andreas"]
[Result "1/2-1/2"]
[ECO "B38"]
[WhiteElo "1909"]
[BlackElo "2019"]
[Annotator "NA"]
[PlyCount "62"]
[EventDate "2019.07.06"]
[EventType "swiss"]
[EventCountry "SWE"]
[SourceTitle "playchess.com"]
[Source "ChessBase"]
[SourceQuality "1"]
[TimeControl "40/5400+30:1800+30"]

1. c4 {[%emt 0:00:00]} c5 {[%emt 0:00:00]} 2. Nf3 {[%emt 0:00:00]} Nc6 {[%emt 0:00:00]} 3. d4 {[%emt 0:00:00]} cxd4 {[%emt 0:00:00]} 4. Nxd4 {[%emt 0:00:00]} g6 {[%emt 0:00:22]} 5. e4 {[%emt 0:00:11]} Bg7 {[%emt 0:00:06]} 6. Be3 {[%emt 0:00:07]} Nf6 {[%emt 0:00:26]} 7. Nc3 {[%emt 0:00:06]} O-O {[%emt 0:03:02]} 8. Be2 {[%emt 0:00:29]} d6 {[%emt 0:00:05]} 9. O-O {[%emt 0:00:37]} Bd7 {[%emt 0:01:17]} 10. Qd2 {[%emt 0:00:57]} Qa5 {[%emt 0:00:25]} 11. f3 {[%emt 0:03:24]} Rfc8 {[%emt 0:00:19]} 12. Rfc1 {[%emt 0:01:44]} Nxd4 {[%emt 0:05:51]} 13. Bxd4 {[%emt 0:00:09]} Bc6 {[%emt 0:00:13]} 14. Rab1 {[%emt 0:00:55]} Nd7 {[%emt 0:00:48]} 15. Be3 {[%emt 0:03:53]} Qd8 {[%emt 0:13:20]} 16. b4 {[%emt 0:01:35]} b6 {[%emt 0:01:21]} 17. Nd5 {[%emt 0:04:39]} Rab8 {[%emt 0:04:32]} 18. Bg5 {[%emt 0:03:25]} Bxd5 {[%emt 0:03:48]} 19. cxd5 {[%emt 0:01:25]} Bf6 {[%emt 0:01:45]} 20. Bxf6 {[%emt 0:07:01]} Nxf6 {[%emt 0:02:16]} 21. Ba6 {[%emt 0:02:27]} Rxc1+ {[%emt 0:00:49]} 22. Rxc1 {[%emt 0:00:07]} Ne8 {[%emt 0:05:41]} 23. Rc6 {[%emt 0:08:16]} Kg7 {[%emt 0:05:15]} 24. Qc3+ {[%emt 0:11:11]} f6 {[%emt 0:00:57]} 25. Qc1 {[%emt 0:03:13]} Qd7 {[%emt 0:08:09]} 26. a4 {[%emt 0:10:27]} Qd8 {[%emt 0:00:41]} 27. Bb5 {[%emt 0:03:03]} Rb7 {[%emt 0:04:29]} 28. Rc3 {[%emt 0:06:01]} Rc7 {[%emt 0:03:12]} 29. Bxe8 {[%emt 0:03:16]} Rxc3 {[%emt 0:00:07]} 30. Qxc3 {[%emt 0:00:02]} Qxe8 {[%emt 0:00:10]} 31. b5 {[%emt 0:00:34]} Qb8 {[%emt 0:00:47]} 1/2-1/2

[Event "SWE-ch Masters 2019"]
[Site "Eskilstuna"]
[Date "2019.07.10"]
[Round "5.1"]
[White "Landgren, Andreas"]
[Black "Wahlund, Max"]
[Result "1-0"]
[ECO "D32"]
[WhiteElo "2246"]
[BlackElo "2100"]
[Annotator "NA"]
[PlyCount "53"]
[EventDate "2019.07.06"]
[EventType "swiss"]
[EventCountry "SWE"]
[SourceTitle "playchess.com"]
[Source "ChessBase"]
[SourceQuality "1"]
[TimeControl "40/5400+30:1800+30"]

1. d4 {[%emt 0:00:00]} d5 {[%emt 0:00:00]} 2. c4 {[%emt 0:00:00]} e6 {[%emt 0:00:00]} 3. Nc3 {[%emt 0:00:00]} c5 {[%emt 0:00:00]} 4. cxd5 {[%emt 0:00:01]} cxd4 {[%emt 0:00:00]} 5. Qa4+ {[%emt 0:00:13]} Bd7 {[%emt 0:00:00]} 6. Qxd4 {[%emt 0:00:11]} exd5 {[%emt 0:00:04]} 7. Qxd5 {[%emt 0:00:22]} Nc6 {[%emt 0:00:07]} 8. Nf3 {[%emt 0:00:09]} Nf6 {[%emt 0:00:03]} 9. Qd1 {[%emt 0:00:06]} Bc5 {[%emt 0:00:15]} 10. e3 {[%emt 0:01:48]} Qe7 {[%emt 0:00:11]} 11. a3 {[%emt 0:01:02]} O-O-O {[%emt 0:00:40]} 12. Qc2 {[%emt 0:00:28]} Kb8 {[%emt 0:01:52]} 13. Be2 {[%emt 0:03:27]} g5 {[%emt 0:02:54]} 14. b4 {[%emt 0:01:27]} g4 {[%emt 0:08:50]} 15. Nd2 {[%emt 0:04:15]} Bb6 {[%emt 0:10:38]} 16. Bb2 {[%emt 0:01:16]} Rc8 {[%emt 0:06:51]} 17. Nc4 {[%emt 0:28:33]} Nd4 {[%emt 0:09:49]} 18. Qd1 {[%emt 0:06:13]} Nxe2 {[%emt 0:23:49]} 19. Qxe2 {[%emt 0:00:36]} Bc7 {[%emt 0:02:35]} 20. O-O {[%emt 0:03:07]} Be6 {[%emt 0:00:36]} 21. Nd2 {[%emt 0:00:37]} Rhd8 {[%emt 0:00:48]} 22. Rfd1 {[%emt 0:00:53]} Be5 {[%emt 0:01:29]} 23. Rac1 {[%emt 0:02:24]} Rc6 {[%emt 0:04:13]} 24. Na4 {[%emt 0:08:15]} Bxh2+ {[%emt 0:10:05]} 25. Kxh2 {[%emt 0:02:05]} Rxc1 {[%emt 0:00:07]} 26. Rxc1 {[%emt 0:02:47]} Qd6+ {[%emt 0:00:43]} 27. Kg1 {[%emt 0:00:42]} 1-0

[Event "SWE-ch Masters 2019"]
[Site "Eskilstuna"]
[Date "2019.07.10"]
[Round "5.2"]
[White "Olsson, Svante"]
[Black "Nikolic, Vladan"]
[Result "1/2-1/2"]
[ECO "A18"]
[WhiteElo "2155"]
[BlackElo "2153"]
[Annotator "NA"]
[PlyCount "81"]
[EventDate "2019.07.06"]
[EventType "swiss"]
[EventCountry "SWE"]
[SourceTitle "playchess.com"]
[Source "ChessBase"]
[SourceQuality "1"]
[TimeControl "40/5400+30:1800+30"]

1. c4 {[%emt 0:00:00]} Nf6 {[%emt 0:00:00]} 2. Nc3 {[%emt 0:00:00]} e6 {[%emt 0:00:00]} 3. e4 {[%emt 0:00:03]} d5 {[%emt 0:00:11]} 4. e5 {[%emt 0:00:08]} d4 {[%emt 0:00:15]} 5. exf6 {[%emt 0:00:08]} dxc3 {[%emt 0:00:07]} 6. bxc3 {[%emt 0:00:18]} Qxf6 {[%emt 0:00:12]} 7. d4 {[%emt 0:00:09]} b6 {[%emt 0:00:49]} 8. Nf3 {[%emt 0:00:25]} Bb7 {[%emt 0:00:13]} 9. Be2 {[%emt 0:00:49]} Bd6 {[%emt 0:01:52]} 10. O-O {[%emt 0:05:00]} O-O {[%emt 0:01:21]} 11. a4 {[%emt 0:02:17]} a5 {[%emt 0:12:01]} 12. Rb1 {[%emt 0:06:03]} Be4 {[%emt 0:05:10]} 13. Rb5 {[%emt 0:00:20]} h6 {[%emt 0:03:03]} 14. Be3 {[%emt 0:12:51]} Bc6 {[%emt 0:06:16]} 15. Rh5 {[%emt 0:02:52]} Bf4 {[%emt 0:18:47]} 16. Qd2 {[%emt 0:00:18]} Bxe3 {[%emt 0:00:43]} 17. fxe3 {[%emt 0:00:17]} Qe7 {[%emt 0:07:19]} 18. Ne5 {[%emt 0:02:40]} Bxa4 {[%emt 0:03:32]} 19. e4 {[%emt 0:00:25]} Be8 {[%emt 0:02:22]} 20. Rh3 {[%emt 0:03:32]} Qg5 {[%emt 0:04:01]} 21. Rf4 {[%emt 0:00:48]} Nc6 {[%emt 0:07:31]} 22. Rg3 {[%emt 0:00:40]} Qe7 {[%emt 0:00:09]} 23. Rfg4 {[%emt 0:03:30]} f5 {[%emt 0:03:29]} 24. Ng6 {[%emt 0:21:32]} Bxg6 {[%emt 0:02:19]} 25. Rxg6 {[%emt 0:00:03]} f4 {[%emt 0:00:16]} 26. R3g4 {[%emt 0:01:14]} a4 {[%emt 0:04:34]} 27. c5 {[%emt 0:00:43]} Rf6 {[%emt 0:04:54]} 28. Rxg7+ {[%emt 0:02:15]} Qxg7 {[%emt 0:00:04]} 29. Rxg7+ {[%emt 0:00:14]} Kxg7 {[%emt 0:00:05]} 30. e5 {[%emt 0:00:06]} Rff8 {[%emt 0:01:10]} 31. Bf3 {[%emt 0:00:20]} a3 {[%emt 0:00:16]} 32. Qa2 {[%emt 0:00:42]} Ne7 {[%emt 0:01:53]} 33. cxb6 {[%emt 0:08:48]} cxb6 {[%emt 0:00:59]} 34. Bxa8 {[%emt 0:02:25]} Rxa8 {[%emt 0:00:04]} 35. Qxe6 {[%emt 0:00:23]} a2 {[%emt 0:01:42]} 36. Qxe7+ {[%emt 0:00:13]} Kg8 {[%emt 0:00:37]} 37. Qe6+ {[%emt 0:00:30]} Kg7 {[%emt 0:01:25]} 38. Qf6+ {[%emt 0:00:49]} Kh7 {[%emt 0:00:19]} 39. Qf7+ {[%emt 0:00:36]} Kh8 {[%emt 0:00:07]} 40. Qf6+ {[%emt 0:00:44]} Kh7 {[%emt 0:00:08]} 41. Qf7+ {[%emt 0:30:09]} 1/2-1/2

[Event "SWE-ch Masters 2019"]
[Site "Eskilstuna"]
[Date "2019.07.10"]
[Round "5.3"]
[White "Jogstad, Daniel"]
[Black "Zadruzny, Nicolaj"]
[Result "1/2-1/2"]
[ECO "D37"]
[WhiteElo "2154"]
[BlackElo "2280"]
[Annotator "NA"]
[PlyCount "57"]
[EventDate "2019.07.06"]
[EventType "swiss"]
[EventCountry "SWE"]
[SourceTitle "playchess.com"]
[Source "ChessBase"]
[SourceQuality "1"]
[TimeControl "40/5400+30:1800+30"]

1. d4 {[%emt 0:00:00]} Nf6 {[%emt 0:00:07]} 2. Nf3 {[%emt 0:01:00]} d5 {[%emt 0:00:20]} 3. c4 {[%emt 0:00:55]} e6 {[%emt 0:00:14]} 4. Nc3 {[%emt 0:00:16]} Be7 {[%emt 0:00:12]} 5. e3 {[%emt 0:02:21]} O-O {[%emt 0:00:47]} 6. Bd3 {[%emt 0:00:24]} c5 {[%emt 0:09:06]} 7. O-O {[%emt 0:01:54]} dxc4 {[%emt 0:05:19]} 8. Bxc4 {[%emt 0:00:16]} Nbd7 {[%emt 0:00:49]} 9. dxc5 {[%emt 0:08:41]} Nxc5 {[%emt 0:13:04]} 10. Qe2 {[%emt 0:01:31]} a6 {[%emt 0:00:26]} 11. Rd1 {[%emt 0:05:36]} Qc7 {[%emt 0:00:58]} 12. a4 {[%emt 0:00:31]} Bd7 {[%emt 0:02:45]} 13. b3 {[%emt 0:02:34]} Nxb3 {[%emt 0:00:37]} 14. Bxb3 {[%emt 0:02:51]} Qxc3 {[%emt 0:00:04]} 15. Qa2 {[%emt 0:04:05]} Qa5 {[%emt 0:10:33]} 16. Bb2 {[%emt 0:06:35]} Bc6 {[%emt 0:07:30]} 17. Ne5 {[%emt 0:01:11]} Bd5 {[%emt 0:00:25]} 18. Nc4 {[%emt 0:00:14]} Qc7 {[%emt 0:02:29]} 19. Rac1 {[%emt 0:01:18]} Bc5 {[%emt 0:08:45]} 20. Bxf6 {[%emt 0:05:37]} gxf6 {[%emt 0:00:06]} 21. Nd2 {[%emt 0:00:12]} Bxb3 {[%emt 0:05:14]} 22. Qxb3 {[%emt 0:12:19]} f5 {[%emt 0:07:09]} 23. Qc3 {[%emt 0:13:06]} b6 {[%emt 0:05:45]} 24. Nb3 {[%emt 0:02:44]} Rfd8 {[%emt 0:00:19]} 25. Nxc5 {[%emt 0:00:42]} Qxc5 {[%emt 0:04:30]} 26. Qf6 {[%emt 0:00:29]} Qf8 {[%emt 0:06:00]} 27. Qg5+ {[%emt 0:00:06]} Kh8 {[%emt 0:00:04]} 28. Qf6+ {[%emt 0:00:20]} Kg8 {[%emt 0:00:04]} 29. Qg5+ {[%emt 0:00:08]} 1/2-1/2

[Event "SWE-ch Masters 2019"]
[Site "Eskilstuna"]
[Date "2019.07.10"]
[Round "5.4"]
[White "Eriksson, Jorgen"]
[Black "Engstrom, Kaj"]
[Result "1-0"]
[ECO "A09"]
[WhiteElo "2211"]
[BlackElo "2234"]
[Annotator "NA"]
[PlyCount "77"]
[EventDate "2019.07.06"]
[EventType "swiss"]
[EventCountry "SWE"]
[SourceTitle "playchess.com"]
[Source "ChessBase"]
[SourceQuality "1"]
[TimeControl "40/5400+30:1800+30"]

1. Nf3 {[%emt 0:00:00]} d5 {[%emt 0:00:00]} 2. c4 {[%emt 0:00:00]} d4 {[%emt 0:00:38]} 3. b4 {[%emt 0:00:14]} c5 {[%emt 0:01:56]} 4. g3 {[%emt 0:00:45]} f6 {[%emt 0:01:43]} 5. Bg2 {[%emt 0:01:23]} e5 {[%emt 0:00:19]} 6. d3 {[%emt 0:01:05]} cxb4 {[%emt 0:03:09]} 7. O-O {[%emt 0:00:50]} Ne7 {[%emt 0:05:57]} 8. a3 {[%emt 0:06:43]} Nec6 {[%emt 0:00:45]} 9. e3 {[%emt 0:02:18]} Na6 {[%emt 0:06:19]} 10. Bb2 {[%emt 0:20:30]} Bc5 {[%emt 0:11:15]} 11. axb4 {[%emt 0:09:04]} Naxb4 {[%emt 0:00:24]} 12. exd4 {[%emt 0:00:17]} exd4 {[%emt 0:03:02]} 13. Na3 {[%emt 0:47:43]} O-O {[%emt 0:04:17]} 14. Nc2 {[%emt 0:00:28]} Bf5 {[%emt 0:11:47]} 15. Nxb4 {[%emt 0:00:11]} Nxb4 {[%emt 0:00:22]} 16. Ba3 {[%emt 0:02:04]} Bg4 {[%emt 0:18:24]} 17. h3 {[%emt 0:00:48]} Bh5 {[%emt 0:00:29]} 18. Qb3 {[%emt 0:00:59]} a5 {[%emt 0:00:17]} 19. Rfe1 {[%emt 0:00:52]} Qd7 {[%emt 0:06:42]} 20. Nd2 {[%emt 0:00:43]} Rfe8 {[%emt 0:02:18]} 21. Ne4 {[%emt 0:00:20]} Bf8 {[%emt 0:00:43]} 22. g4 {[%emt 0:02:34]} Bf7 {[%emt 0:00:12]} 23. Qd1 {[%emt 0:00:52]} Ra6 {[%emt 0:01:45]} 24. Qd2 {[%emt 0:00:46]} h5 {[%emt 0:01:46]} 25. gxh5 {[%emt 0:00:11]} Bxh5 {[%emt 0:00:12]} 26. c5 {[%emt 0:00:17]} Re5 {[%emt 0:04:59]} 27. Bxb4 {[%emt 0:00:22]} axb4 {[%emt 0:00:04]} 28. Rxa6 {[%emt 0:00:59]} bxa6 {[%emt 0:00:04]} 29. Qxb4 {[%emt 0:00:26]} Qa7 {[%emt 0:01:04]} 30. Rc1 {[%emt 0:00:30]} Bf7 {[%emt 0:01:02]} 31. Qxd4 {[%emt 0:00:18]} Be7 {[%emt 0:00:54]} 32. Nd6 {[%emt 0:00:17]} Be6 {[%emt 0:00:20]} 33. Kh2 {[%emt 0:00:27]} Qc7 {[%emt 0:01:02]} 34. Kg1 {[%emt 0:00:14]} Rg5 {[%emt 0:00:37]} 35. Kh1 {[%emt 0:00:26]} Qd7 {[%emt 0:01:13]} 36. Qe3 {[%emt 0:01:08]} Bxd6 {[%emt 0:01:10]} 37. cxd6 {[%emt 0:00:13]} Qxd6 {[%emt 0:00:22]} 38. Rc6 {[%emt 0:00:40]} Qxc6 {[%emt 0:00:38]} 39. Bxc6 {[%emt 0:00:24]} 1-0

[Event "SWE-ch Masters 2019"]
[Site "Eskilstuna"]
[Date "2019.07.10"]
[Round "5.5"]
[White "Crevatin, Leo"]
[Black "Lind, Jan-Olov"]
[Result "1-0"]
[ECO "E84"]
[WhiteElo "2146"]
[BlackElo "2155"]
[Annotator "NA"]
[PlyCount "62"]
[EventDate "2019.07.06"]
[EventType "swiss"]
[EventCountry "SWE"]
[SourceTitle "playchess.com"]
[Source "ChessBase"]
[SourceQuality "1"]
[TimeControl "40/5400+30:1800+30"]

1. d4 {[%emt 0:00:00]} g6 {[%emt 0:00:00]} 2. c4 {[%emt 0:00:00]} Bg7 {[%emt 0:00:01]} 3. Nc3 {[%emt 0:00:00]} Nf6 {[%emt 0:00:04]} 4. e4 {[%emt 0:00:00]} d6 {[%emt 0:00:05]} 5. f3 {[%emt 0:00:00]} O-O {[%emt 0:00:15]} 6. Nge2 {[%emt 0:00:00]} Nc6 {[%emt 0:01:56]} 7. Be3 {[%emt 0:00:09]} a6 {[%emt 0:00:09]} 8. Qd2 {[%emt 0:00:04]} Rb8 {[%emt 0:00:15]} 9. Rc1 {[%emt 0:01:21]} e5 {[%emt 0:00:14]} 10. d5 {[%emt 0:00:32]} Ne7 {[%emt 0:00:06]} 11. g3 {[%emt 0:06:20]} c5 {[%emt 0:13:46]} 12. Bg2 {[%emt 0:04:51]} b5 {[%emt 0:08:26]} 13. cxb5 {[%emt 0:05:14]} axb5 {[%emt 0:00:08]} 14. O-O {[%emt 0:00:13]} b4 {[%emt 0:05:57]} 15. Nd1 {[%emt 0:03:28]} Nd7 {[%emt 0:07:30]} 16. Nf2 {[%emt 0:01:01]} Ba6 {[%emt 0:08:30]} 17. f4 {[%emt 0:04:48]} exf4 {[%emt 0:04:15]} 18. gxf4 {[%emt 0:01:00]} f5 {[%emt 0:01:56]} 19. Rfe1 {[%emt 0:19:18]} fxe4 {[%emt 0:06:44]} 20. Nxe4 {[%emt 0:00:11]} Nf5 {[%emt 0:00:38]} 21. Bf2 {[%emt 0:00:45]} h6 {[%emt 0:04:53]} 22. N2g3 {[%emt 0:04:23]} Nb6 {[%emt 0:02:34]} 23. Nxf5 {[%emt 0:08:01]} gxf5 {[%emt 0:00:48]} 24. Nxd6 {[%emt 0:08:58]} Qxd6 {[%emt 0:01:10]} 25. Bxc5 {[%emt 0:03:13]} Qd8 {[%emt 0:08:34]} 26. Bxf8 {[%emt 0:00:49]} Bxf8 {[%emt 0:03:18]} 27. Qc2 {[%emt 0:03:35]} Qf6 {[%emt 0:08:12]} 28. Kh1 {[%emt 0:03:17]} Bc8 {[%emt 0:04:59]} 29. Qe2 {[%emt 0:04:11]} Bd6 {[%emt 0:05:50]} 30. Qe8+ {[%emt 0:01:26]} Bf8 {[%emt 0:02:51]} 31. Rc6 {[%emt 0:02:03]} Qf7 {[%emt 0:00:00]} 1-0

[Event "SWE-ch Masters 2019"]
[Site "Eskilstuna"]
[Date "2019.07.10"]
[Round "5.6"]
[White "Tiger-Norqvist, Axel"]
[Black "Olsson, Simon"]
[Result "1/2-1/2"]
[ECO "B12"]
[WhiteElo "2222"]
[BlackElo "2176"]
[Annotator "NA"]
[PlyCount "67"]
[EventDate "2019.07.06"]
[EventType "swiss"]
[EventCountry "SWE"]
[SourceTitle "playchess.com"]
[Source "ChessBase"]
[SourceQuality "1"]
[TimeControl "40/5400+30:1800+30"]

1. e4 {[%emt 0:00:00]} c6 {[%emt 0:00:00]} 2. d4 {[%emt 0:00:00]} d5 {[%emt 0:00:00]} 3. e5 {[%emt 0:00:00]} Bf5 {[%emt 0:00:00]} 4. Nf3 {[%emt 0:00:00]} e6 {[%emt 0:00:05]} 5. Be2 {[%emt 0:00:04]} Nd7 {[%emt 0:00:44]} 6. O-O {[%emt 0:00:08]} h5 {[%emt 0:01:27]} 7. b3 {[%emt 0:00:26]} Be7 {[%emt 0:01:34]} 8. c4 {[%emt 0:01:51]} g5 {[%emt 0:01:20]} 9. Ne1 {[%emt 0:01:02]} g4 {[%emt 0:08:44]} 10. Nc3 {[%emt 0:02:35]} Nh6 {[%emt 0:01:37]} 11. c5 {[%emt 0:12:00]} Bg6 {[%emt 0:13:40]} 12. Bxh6 {[%emt 0:05:19]} Rxh6 {[%emt 0:00:05]} 13. f4 {[%emt 0:01:54]} f6 {[%emt 0:14:33]} 14. Bd3 {[%emt 0:02:52]} fxe5 {[%emt 0:01:24]} 15. Bxg6+ {[%emt 0:00:39]} Rxg6 {[%emt 0:00:01]} 16. fxe5 {[%emt 0:00:09]} Bg5 {[%emt 0:00:30]} 17. Ne2 {[%emt 0:09:34]} Qe7 {[%emt 0:12:43]} 18. b4 {[%emt 0:04:39]} O-O-O {[%emt 0:01:33]} 19. b5 {[%emt 0:01:33]} Nb8 {[%emt 0:08:22]} 20. Nc2 {[%emt 0:03:42]} Rg7 {[%emt 0:02:39]} 21. a4 {[%emt 0:01:57]} Rf8 {[%emt 0:00:22]} 22. Qd3 {[%emt 0:00:18]} h4 {[%emt 0:09:21]} 23. Nc3 {[%emt 0:02:17]} Bh6 {[%emt 0:04:29]} 24. a5 {[%emt 0:04:31]} g3 {[%emt 0:02:24]} 25. Rxf8+ {[%emt 0:01:19]} Qxf8 {[%emt 0:00:02]} 26. Rf1 {[%emt 0:01:13]} gxh2+ {[%emt 0:01:21]} 27. Kxh2 {[%emt 0:00:16]} Qg8 {[%emt 0:00:49]} 28. Qe2 {[%emt 0:03:36]} Rg3 {[%emt 0:02:54]} 29. Rf6 {[%emt 0:08:22]} Rxc3 {[%emt 0:05:42]} 30. Rxh6 {[%emt 0:00:15]} Rxc2 {[%emt 0:01:57]} 31. Qxc2 {[%emt 0:00:28]} Qg3+ {[%emt 0:00:11]} 32. Kh1 {[%emt 0:00:13]} Qe1+ {[%emt 0:00:08]} 33. Kh2 {[%emt 0:00:05]} Qg3+ {[%emt 0:00:16]} 34. Kh1 {[%emt 0:00:07]} 1/2-1/2

[Event "SWE-ch Masters 2019"]
[Site "Eskilstuna"]
[Date "2019.07.10"]
[Round "5.7"]
[White "Olsson, William"]
[Black "Sivhed, Johan"]
[Result "1-0"]
[ECO "D37"]
[WhiteElo "2113"]
[BlackElo "2023"]
[Annotator "NA"]
[PlyCount "91"]
[EventDate "2019.07.06"]
[EventType "swiss"]
[EventCountry "SWE"]
[SourceTitle "playchess.com"]
[Source "ChessBase"]
[SourceQuality "1"]
[TimeControl "40/5400+30:1800+30"]

1. Nf3 {[%emt 0:00:00]} Nf6 {[%emt 0:00:56]} 2. c4 {[%emt 0:00:00]} e6 {[%emt 0:00:20]} 3. Nc3 {[%emt 0:00:19]} d5 {[%emt 0:00:27]} 4. d4 {[%emt 0:00:43]} Be7 {[%emt 0:00:32]} 5. Bf4 {[%emt 0:02:00]} O-O {[%emt 0:00:27]} 6. e3 {[%emt 0:00:06]} Nbd7 {[%emt 0:00:18]} 7. Rc1 {[%emt 0:01:59]} c5 {[%emt 0:02:08]} 8. cxd5 {[%emt 0:02:15]} Nxd5 {[%emt 0:00:57]} 9. Nxd5 {[%emt 0:02:38]} exd5 {[%emt 0:00:07]} 10. Qd2 {[%emt 0:00:20]} c4 {[%emt 0:10:28]} 11. Be2 {[%emt 0:00:36]} Nf6 {[%emt 0:00:46]} 12. O-O {[%emt 0:03:39]} Ne4 {[%emt 0:02:32]} 13. Qe1 {[%emt 0:02:37]} Qb6 {[%emt 0:03:22]} 14. b3 {[%emt 0:20:39]} Ba3 {[%emt 0:30:05]} 15. Rb1 {[%emt 0:03:38]} c3 {[%emt 0:08:20]} 16. Bd3 {[%emt 0:00:32]} Bd7 {[%emt 0:08:57]} 17. Bxe4 {[%emt 0:08:42]} dxe4 {[%emt 0:00:17]} 18. Ne5 {[%emt 0:00:21]} Bb5 {[%emt 0:00:39]} 19. Nc4 {[%emt 0:00:09]} Bxc4 {[%emt 0:02:51]} 20. bxc4 {[%emt 0:00:07]} Bb2 {[%emt 0:00:38]} 21. Qd1 {[%emt 0:02:09]} Rac8 {[%emt 0:03:16]} 22. c5 {[%emt 0:05:23]} Qa6 {[%emt 0:03:05]} 23. Qb3 {[%emt 0:00:22]} b6 {[%emt 0:04:15]} 24. Bd6 {[%emt 0:01:09]} Rfd8 {[%emt 0:00:38]} 25. Rxb2 {[%emt 0:00:31]} cxb2 {[%emt 0:00:12]} 26. Qxb2 {[%emt 0:00:02]} bxc5 {[%emt 0:02:34]} 27. dxc5 {[%emt 0:00:25]} Rxd6 {[%emt 0:00:57]} 28. cxd6 {[%emt 0:00:22]} Qxd6 {[%emt 0:00:15]} 29. Qb7 {[%emt 0:00:11]} Qc6 {[%emt 0:01:42]} 30. Qxa7 {[%emt 0:00:44]} Ra8 {[%emt 0:00:19]} 31. Qd4 {[%emt 0:02:44]} h6 {[%emt 0:00:49]} 32. Qb2 {[%emt 0:01:09]} Qa4 {[%emt 0:01:47]} 33. Ra1 {[%emt 0:00:43]} Kh7 {[%emt 0:01:29]} 34. h3 {[%emt 0:00:25]} Kg8 {[%emt 0:00:44]} 35. Qb7 {[%emt 0:03:53]} Rd8 {[%emt 0:02:29]} 36. Qb3 {[%emt 0:00:58]} Qa6 {[%emt 0:01:02]} 37. a4 {[%emt 0:03:07]} Qf6 {[%emt 0:03:45]} 38. Rf1 {[%emt 0:06:26]} Rd2 {[%emt 0:00:49]} 39. Qb4 {[%emt 0:00:09]} Ra2 {[%emt 0:00:57]} 40. Qxe4 {[%emt 0:00:33]} g6 {[%emt 0:01:31]} 41. f4 {[%emt 0:42:19]} Qa6 {[%emt 0:12:18]} 42. Rd1 {[%emt 0:00:00]} Qc8 {[%emt 0:05:50]} 43. Qe7 {[%emt 0:00:00]} Qf5 {[%emt 0:03:13]} 44. Rd8+ {[%emt 0:00:00]} Kg7 {[%emt 0:01:07]} 45. Qf8+ {[%emt 0:00:00]} Kf6 {[%emt 0:00:07]} 46. Rd6+ {[%emt 0:00:00]} 1-0